fUSD/lending_fUSD_20240929
["ID","MTS","AMOUNT","RATE_DAILY","PERIOD"]
[339428246,1727610532725,500.0,0.00021999,120]
[339428247,1727610532809,2292.52,0.00021999,120]
[339428248,1727610532922,500.0,0.00021999,120]
[339428249,1727610533043,511.12,0.00021999,120]
[339428250,1727610533082,501.85789634,0.00021999,120]
[339428251,1727610533123,2292.52,0.00021999,120]
[339428252,1727610533161,500.0,0.00021999,120]
[339428253,1727610533337,500.0,0.00021999,120]
[339428254,1727610533378,2292.52,0.00021999,120]
[339428255,1727610533415,528.24,0.00021999,120]
[339428256,1727610533452,511.33,0.00021999,120]
[339428257,1727610533634,500.0,0.00021999,120]
[339428258,1727610533674,2292.52,0.00021999,120]
[339428259,1727610533894,500.0,0.00021999,120]
[339428260,1727610533936,2292.52,0.00021999,120]
[339428261,1727610534171,500.0,0.00021999,120]
[339428262,1727610534217,2292.52,0.00021999,120]
[339428263,1727610534490,500.0,0.00021999,120]
[339428264,1727610534532,2292.52,0.00021999,120]
[339428265,1727610534572,500.0,0.00021999,120]
[339428266,1727610534836,500.0,0.00021999,120]
[339428267,1727610535007,500.0,0.00021999,120]
[339428268,1727610535099,2292.52,0.00021999,120]
[339428269,1727610535169,500.0,0.00021999,120]
[339428270,1727610535347,500.0,0.00021999,120]
[339428271,1727610535389,2292.52,0.00021999,120]
[339428272,1727610535444,500.0,0.00021999,120]
[339428273,1727610535621,500.0,0.00021999,120]
[339428274,1727610535662,2292.52,0.00021999,120]
[339428275,1727610535922,500.0,0.00021999,120]
[339428276,1727610536215,2292.52,0.00021999,120]
[339428277,1727610536258,500.0,0.00021999,120]
[339428278,1727610536296,500.0,0.00021999,120]
[339428279,1727610536358,2292.52,0.00021999,120]
[339428280,1727610536479,500.0,0.00021999,120]
[339428281,1727610536533,500.0,0.00021999,120]
[339428282,1727610536635,2292.52,0.00021999,120]
[339428283,1727610536746,500.0,0.00021999,120]
[339428284,1727610536785,500.0,0.00021999,120]
[339428285,1727610536843,500.0,0.00021999,120]
[339428286,1727610536898,846.04567873,0.00021999,120]
[339428292,1727610630142,922.71,8.219e-05,2]
[339428299,1727610638428,-275.57,9.911e-05,2]
[339428300,1727610638438,-250.0,9.918e-05,2]
[339428301,1727610638448,-1000.0,9.931e-05,2]
[339428302,1727610638458,-160.95,9.936e-05,2]
[339428303,1727610638469,-1050.0,0.0001,2]
[339428304,1727610638479,-922.71,0.00010471,2]
[339428305,1727610638489,-25105.19316981,0.000107,2]
[339428306,1727610638500,-826.9230388,0.00010785,2]
[339428307,1727610638510,-1000.0,0.00010795,2]
[339428308,1727610638520,-150.0,0.00010799,2]
[339428309,1727610638530,-32643.11373736,0.000108,2]
[339428310,1727610638541,-829.91471857,0.00010849,2]
[339428311,1727610638551,-22322.3974179,0.0001085,2]
[339428312,1727610638561,-335.09687088,0.00010852,2]
[339428313,1727610638571,-700.0,0.00010857,2]
[339428314,1727610638581,-500.0,0.00010857,2]
[339428315,1727610638592,-900.0,0.00010857,2]
[339428316,1727610638602,-9417.07834173,0.0001088,2]
[339428317,1727610638612,-151.0,0.00010895,2]
[339428318,1727610638623,-159.42797736,0.00010895,2]
[339428319,1727610638633,-232582.2572,0.00010895,2]
[339428320,1727610638643,-31105.863,0.00010895,2]
[339428321,1727610638653,-159.53480384,0.00010898,2]
[339428322,1727610638663,-159.53480383,0.00010898,2]
[339428323,1727610638673,-159.53480383,0.00010899,2]
[339428324,1727610638683,-151.0,0.00010899,2]
[339428325,1727610638693,-151.0,0.00010899,2]
[339428326,1727610638703,-151.0,0.00010899,2]
[339428327,1727610638714,-422.8402042,0.00010899,2]
[339428345,1727610638975,-159.53480383,0.00010899,2]
[339428348,1727610638994,-422.8402042,0.000109,2]
[339428350,1727610639006,-159.53480383,0.000109,2]
[339428352,1727610639016,-371.40145839,0.000109,4]
[339428354,1727610639026,-150.0,0.000109,2]
[339428356,1727610639036,-159.42797736,0.000109,2]
[339428358,1727610639046,-154.23122312,0.000109,2]
[339428360,1727610639057,-154.23122312,0.000109,2]
[339428362,1727610639067,-154.23122312,0.000109,2]
[339428364,1727610639078,-154.23122312,0.000109,2]
[339428366,1727610639088,-154.23122312,0.000109,2]
[339428368,1727610639097,-154.23122312,0.000109,2]
[339428370,1727610639106,-1042.0,0.000109,2]
[339428372,1727610639115,-159.53480383,0.000109,2]
[339428374,1727610639125,-422.8402042,0.000109,2]
[339428376,1727610639134,-1277.656,0.00010952,2]
[339428377,1727610639143,-648.416,0.00010952,2]
[339428380,1727610639155,-1296.0,0.00010952,2]
[339428382,1727610639165,-456.497,0.00010952,2]
[339428384,1727610639175,-933.0,0.00010952,2]
[339428386,1727610639185,-810.0,0.00010952,2]
[339428388,1727610639197,-208.268,0.00010952,2]
[339428390,1727610639209,-559.0,0.00010952,2]
[339428392,1727610639218,-150.488,0.00010952,2]
[339428394,1727610639227,-559.902,0.00010952,2]
[339428396,1727610639236,-1904.0,0.00010952,2]
[339428398,1727610639246,-1911.0,0.00010952,2]
[339428400,1727610639255,-807.0,0.00010952,2]
[339428402,1727610639264,-3348.0,0.00010952,2]
[339428404,1727610639274,-5836.314,0.00010952,2]
[339428406,1727610639283,-1148.0,0.00010952,2]
[339428408,1727610639293,-150.0,0.00010952,2]
[339428410,1727610639303,-13502.0,0.00010952,2]
[339428412,1727610639312,-500.0,0.00010958,2]
[339428414,1727610639321,-500.0,0.00010958,2]
[339428416,1727610639331,-500.0,0.00010958,2]
[339428418,1727610639341,-500.0,0.00010958,2]
[339428420,1727610639351,-500.0,0.00010958,2]
[339428422,1727610639361,-380.96453653,0.00010958,2]
[339428424,1727610639371,-320.10717072,0.00010958,2]
[339428426,1727610639381,-165.8,0.00010959,2]
[339428428,1727610639393,-150.1,0.00010959,2]
[339428430,1727610639402,-168.71,0.00010959,2]
[339428432,1727610639412,-175.62,0.00010959,2]
[339428434,1727610639421,-1253.74,0.00010959,2]
[339428436,1727610639433,-151.0,0.00010959,2]
[339428437,1727610639442,-151.0,0.00010959,2]
[339428439,1727610639451,-151.0,0.00010959,2]
[339428441,1727610639461,-151.0,0.00010959,2]
[339428443,1727610639470,-151.0,0.00010959,2]
[339428445,1727610639479,-151.0,0.00010959,2]
[339428446,1727610639488,-151.0,0.00010959,2]
[339428448,1727610639498,-151.0,0.00010959,2]
[339428450,1727610639507,-151.0,0.00010959,2]
[339428452,1727610639516,-151.0,0.00010959,2]
[339428454,1727610639526,-151.0,0.00010959,2]
[339428456,1727610639535,-151.0,0.00010959,2]
[339428457,1727610639544,-151.0,0.00010959,2]
[339428459,1727610639554,-279.521046,0.00010959,2]
[339428461,1727610639563,-150.18,0.00010959,2]
[339428464,1727610639574,-2000.0,0.00010959,2]
[339428466,1727610639583,-151.0,0.00010959,2]
[339428467,1727610639593,-151.0,0.00010959,2]
[339428469,1727610639602,-151.0,0.00010959,2]
[339428471,1727610639611,-160.078,0.00010959,2]
[339428473,1727610639621,-691.653,0.00010959,2]
[339428475,1727610639632,-422.30975046,0.00010963,2]
[339428477,1727610639643,-151.0,0.00010972,2]
[339428479,1727610639654,-151.694656,0.00010972,2]
[339428481,1727610639663,-500.0,0.00010973,2]
[339428483,1727610639672,-331.68886943,0.00010973,2]
[339428485,1727610639682,-10014.0,0.00010986,2]
[339428487,1727610639691,-50213.0,0.00010986,2]
[339428488,1727610639700,-786.0,0.00010986,2]
[339428490,1727610639709,-582.0,0.00010986,2]
[339428491,1727610639719,-500.0,0.00010987,2]
[339428492,1727610639728,-150.0,0.00010987,2]
[339428493,1727610639737,-500.0,0.00010987,2]
[339428494,1727610639746,-2272.0,0.0001099,2]
[339428495,1727610639756,-20323.7077515,0.00010992,2]
[339428496,1727610639766,-18325.0180852,0.00010992,2]
[339428497,1727610639775,-16326.3284188,0.00010992,2]
[339428498,1727610639784,-190.47241121,0.00010994,2]
[339428499,1727610639793,-500.0,0.00010994,2]
[339428500,1727610639803,-500.0,0.00010994,2]
[339428501,1727610639811,-500.0,0.00010994,2]
[339428502,1727610639821,-500.0,0.00010994,2]
[339428503,1727610639830,-605.41895179,0.00010994,2]
[339428504,1727610639840,-644.0,0.00010995,2]
[339428505,1727610639850,-319235.04677408,0.00010995,2]
[339428506,1727610639859,-2572.66170439,0.00010995,2]
[339428507,1727610639868,-150.44912856,0.00010997,2]
[339428508,1727610639877,-359734.32042851,0.00010998,2]
[339428509,1727610639886,-3971.32535258,0.00010998,2]
[339428510,1727610639895,-1105111.07174099,0.00010998,2]
[339428512,1727610639904,-342567.3633317,0.00010998,2]
[339428514,1727610639914,-1000.0,0.00010999,2]
[339428516,1727610639924,-1000.0,0.00010999,2]
[339428518,1727610639933,-1000.0,0.00010999,2]
[339428519,1727610639943,-1000.0,0.00010999,2]
[339428521,1727610639952,-1000.0,0.00010999,2]
[339428523,1727610639961,-1000.0,0.00010999,2]
[339428525,1727610639970,-1000.0,0.00010999,2]
[339428527,1727610639979,-1000.0,0.00010999,3]
[339428529,1727610639988,-2273.41371453,0.00010999,2]
[339428531,1727610639997,-1000.0,0.00010999,2]
[339428533,1727610640007,-1000.0,0.00010999,2]
[339428534,1727610640016,-1000.0,0.00010999,2]
[339428536,1727610640026,-1067.82524521,0.00010999,3]
[339428538,1727610640035,-1067.82524521,0.00010999,3]
[339428540,1727610640045,-1067.82524521,0.00010999,3]
[339428542,1727610640054,-1067.82524521,0.00010999,3]
[339428544,1727610640064,-1067.82524521,0.00010999,3]
[339428546,1727610640074,-1067.82524521,0.00010999,3]
[339428547,1727610640084,-1067.82524521,0.00010999,3]
[339428549,1727610640094,-1067.82524518,0.00010999,3]
[339428551,1727610640103,-1000.0,0.00010999,2]
[339428553,1727610640112,-299.09455867,0.00011,2]
[339428555,1727610640122,-675722.40289719,0.00011,2]
[339428558,1727610640139,-11512.0,0.00011,2]
[339428560,1727610640154,-67866.31374093,0.00011,2]
[339428565,1727610640420,-385.783006,0.0001085,2]
[339428566,1727610640430,-385.783006,0.00010857,2]
[339428567,1727610640439,-19682.01462077,0.00011,2]
[339428568,1727610640623,-54764.66971007,0.00011,2]
[339428836,1727610646433,-385.783006,0.0001085,2]
[339428838,1727610646442,-385.783006,0.00010857,2]
[339428840,1727610646451,-385.783006,0.0001088,2]
[339428841,1727610646460,-385.783006,0.0001088,2]
[339428843,1727610646469,-385.783006,0.00010895,2]
[339428845,1727610646479,-385.783006,0.00010895,2]
[339428847,1727610646488,-235.26633892,0.00010895,2]
[339428849,1727610646497,-385.783006,0.00010895,2]
[339428851,1727610646506,-339.50261908,0.00010895,2]
[339428853,1727610646539,-46.28038692,0.00010895,2]
[339428854,1727610646549,-385.783006,0.00010899,2]
[339428855,1727610646559,-385.783006,0.00010899,2]
[339428856,1727610646569,-385.783006,0.00010899,2]
[339428857,1727610646579,-385.783006,0.00010899,2]
[339428858,1727610646591,-385.783006,0.00010899,2]
[339428859,1727610646601,-385.783006,0.00010899,2]
[339428860,1727610646610,-385.783006,0.00010899,2]
[339428861,1727610646621,-576.0,0.00011,2]
[339428862,1727610646631,-148072.71257106,0.00011,2]
[339428863,1727610646646,-27137.6278518,0.00011,2]
[339428869,1727611177511,888.68,8.362e-05,2]
[339428870,1727611240232,800.0,9.761e-05,2]
[339428871,1727611559342,800.0,9.761e-05,2]
[339428895,1727611831567,-250.0,0.00010212,2]
[339428897,1727611831576,-275.57,0.00010214,2]
[339428899,1727611831585,-160.95,0.00010238,2]
[339428901,1727611831594,-876.5842954,0.0001036,2]
[339428903,1727611831606,-123.4157046,0.0001036,2]
[339428905,1727611831616,-328.38,0.00010454,2]
[339428907,1727611831625,-888.68,0.00010626,2]
[339428908,1727611831634,-150.0,0.00010847,2]
[339428909,1727611831643,-300.0,0.00010847,2]
[339428910,1727611831652,-97.80468603,0.00010848,2]
[339428911,1727611837806,-461.19531397,0.00010848,2]
[339428912,1727611837816,-933.0,0.00010848,2]
[339428913,1727611837825,-444.23,0.00010848,2]
[339428914,1727611837834,-13502.0,0.00010848,2]
[339428915,1727611837844,-150.0,0.00010848,2]
[339428916,1727611837853,-500.0,0.00010857,2]
[339428917,1727611837862,-1000.0,0.00010857,2]
[339428918,1727611837871,-75172.61212424,0.000109,2]
[339428919,1727611837881,-36574.89131029,0.000109,2]
[339428920,1727611837890,-500.0,0.00010912,2]
[339428921,1727611837899,-166.92,0.00010959,2]
[339428922,1727611837909,-178.77,0.00010959,2]
[339428923,1727611837918,-500.0,0.00010959,2]
[339428924,1727611837927,-600.45,0.00010959,2]
[339428925,1727611837936,-292.297,0.00010972,2]
[339428926,1727611837945,-501.17397598,0.00010973,2]
[339428927,1727611837955,-500.0,0.00010973,2]
[339428928,1727611837964,-829.91471857,0.00010999,2]
[339428929,1727611837973,-1000.0,0.00010999,2]
[339428930,1727611837983,-1000.0,0.00010999,2]
[339428931,1727611837992,-1000.0,0.00010999,2]
[339428932,1727611838002,-650.446,0.00010999,2]
[339428933,1727611838011,-500.0,0.00010999,2]
[339428934,1727611838021,-500.0,0.00010999,2]
[339428935,1727611838030,-500.0,0.00010999,2]
[339428936,1727611838039,-323.79326626,0.00010999,2]
[339428937,1727611838049,-160.07912929,0.00010999,2]
[339428938,1727611838058,-500.0,0.00010999,2]
[339428939,1727611838068,-278.7999983,0.00010999,2]
[339428940,1727611838078,-516.0,0.00011,2]
[339428941,1727611838087,-239.27564693,0.00011,2]
[339428942,1727611838096,-181610.21701944,0.00011,2]
[339428943,1727611838105,-624316.33013019,0.00011,2]
[339428944,1727611838117,-1147347.01545081,0.00011,2]
[339428945,1727611838142,-476.290033,0.00011,2]
[339428997,1727611885021,820.05,8.985e-05,2]
[339429011,1727612388723,1000.0,9.888e-05,2]
[339429012,1727612428406,235.74,9.887e-05,2]
[339429013,1727612441308,875.27,8.219e-05,2]
[339429014,1727612624296,150.0,9.88e-05,2]
[339429015,1727612790339,210.07,9.589e-05,2]
[339429018,1727612839987,250.0,9.886e-05,2]
[339429037,1727612918235,150.0,9.92e-05,2]
[339429049,1727612988284,200.0,9.888e-05,2]
[339429053,1727613029237,854.74,8.219e-05,2]
[339429065,1727613031936,-657.2017464,0.0001,2]
[339429094,1727613038001,-392.7982536,0.0001,2]
[339429095,1727613038011,-854.74,0.0001047,2]
[339429096,1727613038021,-2500.0,0.00010779,2]
[339429097,1727613038030,-1000.0,0.00010857,2]
[339429098,1727613038040,-800.0,0.00010857,2]
[339429099,1727613038049,-500.0,0.00010857,2]
[339429100,1727613038059,-500.0,0.00010873,2]
[339429101,1727613038068,-300.0,0.00010876,2]
[339429102,1727613038077,-150.0,0.00010878,2]
[339429103,1727613038086,-4776.49508725,0.00010878,2]
[339429104,1727613038095,-35769.36845415,0.00010879,2]
[339429105,1727613038105,-179808.54228781,0.00010879,2]
[339429106,1727613038114,-4776.49508725,0.00010879,2]
[339429107,1727613038123,-409.38475581,0.0001088,2]
[339429108,1727613038132,-3975.88328693,0.0001088,2]
[339429109,1727613038141,-409.38475581,0.00010881,2]
[339429110,1727613038151,-35769.36845415,0.00010882,2]
[339429111,1727613038160,-200.0,0.00010882,2]
[339429112,1727613038169,-35769.36845415,0.00010883,2]
[339429113,1727613038178,-35769.36845415,0.00010885,2]
[339429114,1727613038187,-409.38475581,0.00010885,2]
[339429115,1727613038196,-179808.54228781,0.00010885,2]
[339429116,1727613038205,-179808.54228781,0.00010886,2]
[339429117,1727613038215,-35769.36845415,0.00010886,2]
[339429118,1727613038224,-3975.88328693,0.00010887,2]
[339429119,1727613038234,-4776.49508725,0.00010889,2]
[339429120,1727613038243,-8952.90035257,0.0001089,2]
[339429121,1727613038258,-463.4202856,0.0001089,2]
[339429122,1727613038269,-749.86877271,0.0001089,2]
[339429123,1727613038280,-2570.50200004,0.0001089,2]
[339429125,1727613038296,-3413.85644702,0.0001089,2]
[339429127,1727613038307,-4032.83102732,0.0001089,2]
[339429130,1727613038318,-22403.32009726,0.0001089,2]
[339429132,1727613038329,-1379.86572107,0.0001089,2]
[339429134,1727613038340,-2603.64689548,0.0001089,2]
[339429136,1727613038351,-32019.09010202,0.0001089,2]
[339429167,1727613040085,-763.55321187,0.0001089,2]
[339429168,1727613040096,-1599.61169942,0.0001089,2]
[339429246,1727613042974,-40312.43884154,0.0001089,2]
[339429247,1727613043031,-1500.0,0.0001089,2]
[339429248,1727613043087,-647.03681964,0.0001089,2]
[339429249,1727613043099,-352.96318036,0.0001089,2]
[339429250,1727613043254,-37906.5647493,0.0001089,2]
[339429251,1727613043266,-18137.07208459,0.0001089,2]
[339429252,1727613043275,-200.0,0.0001089,2]
[339429253,1727613043285,-409.38475581,0.00010891,2]
[339429254,1727613043297,-4776.49508725,0.00010892,2]
[339429255,1727613043306,-4514.13674446,0.00010892,2]
[339429256,1727613043317,-262.35834279,0.00010892,2]
[339429257,1727613043327,-409.38475581,0.00010892,2]
[339429258,1727613043336,-3975.88328693,0.00010893,2]
[339429259,1727613043346,-31672.90641123,0.00010893,2]
[339429260,1727613043357,-1036.17076005,0.00010893,2]
[339429261,1727613045809,-7533.79919372,0.00010893,2]
[339429262,1727613045820,-11753.76194839,0.00010893,2]
[339429263,1727613045832,-716.16506598,0.00010893,2]
[339429264,1727613045843,-2052.06145871,0.00010893,2]
[339429266,1727613045854,-11258.983078,0.00010893,2]
[339429269,1727613045873,-3007.05789495,0.00010893,2]
[339429270,1727613045884,-609.53823585,0.00010893,2]
[339429271,1727613045895,-1295.87497203,0.00010893,2]
[339429272,1727613045906,-78312.49128101,0.00010893,2]
[339429273,1727613045918,-1613.48867776,0.00010893,2]
[339429274,1727613045934,-553.56974129,0.00010893,2]
[339429275,1727613045945,-1429.02069593,0.00010893,2]
[339429276,1727613045956,-353.68141749,0.00010893,2]
[339429277,1727613045967,-16153.49979463,0.00010893,2]
[339429278,1727613045978,-4403.2643763,0.00010893,2]
[339429279,1727613045989,-6053.20728449,0.00010893,2]
[339429280,1727613045998,-3975.88328693,0.00010893,2]
[339429281,1727613046007,-3975.88328693,0.00010897,2]
[339429282,1727613046017,-850.0,0.000109,2]
[339429283,1727613046026,-500.0,0.00010958,2]
[339429284,1727613046035,-321.81528519,0.00010958,2]
[339429285,1727613046046,-500.0,0.00010958,2]
[339429286,1727613046062,-500.0,0.00010958,2]
[339429287,1727613046071,-516.85873265,0.00010958,2]
[339429288,1727613046080,-545.15999881,0.00010958,2]
[339429289,1727613046090,-166.46,0.00010959,2]
[339429290,1727613046099,-191.13,0.00010959,2]
[339429291,1727613046108,-151.78,0.00010959,2]
[339429292,1727613046117,-221.88,0.00010959,2]
[339429293,1727613046125,-184.9,0.00010959,2]
[339429294,1727613046134,-184.9,0.00010959,2]
[339429295,1727613046143,-739.6,0.00010959,2]
[339429296,1727613046153,-150.0,0.00010972,2]
[339429297,1727613046161,-7797.36259243,0.00010972,2]
[339429298,1727613046173,-663.02749647,0.00010972,2]
[339429300,1727613046184,-500.0,0.00010972,2]
[339429302,1727613046200,-4541.6099111,0.00010972,2]
[339429303,1727613046209,-532.032,0.00010972,2]
[339429304,1727613046219,-552.199,0.00010972,2]
[339429305,1727613046228,-500.0,0.00010973,2]
[339429306,1727613046237,-500.0,0.00010973,2]
[339429307,1727613046246,-500.0,0.00010973,2]
[339429308,1727613046254,-500.0,0.00010973,2]
[339429309,1727613046263,-598.056,0.00010973,2]
[339429310,1727613046273,-4428.7926406,0.00010997,2]
[339429311,1727613046282,-1000.0,0.00010999,2]
[339429312,1727613046291,-1000.0,0.00010999,2]
[339429313,1727613046304,-622.43603892,0.00010999,2]
[339429314,1727613046313,-1000.0,0.00010999,2]
[339429315,1727613046323,-1000.0,0.00010999,2]
[339429316,1727613046332,-1301.82344774,0.00010999,3]
[339429317,1727613046341,-1301.82344774,0.00010999,3]
[339429318,1727613046350,-191.42051755,0.00011,2]
[339429319,1727613046359,-29929.80699635,0.00011,2]
[339429320,1727613046370,-5163.11011669,0.00011,2]
[339429321,1727613046381,-14706.01364356,0.00011,2]
[339429322,1727613046393,-41006.17775312,0.00011,2]
[339429323,1727613046402,-25218.33219247,0.00011,2]
[339429324,1727613046413,-25096.90873033,0.00011,2]
[339429325,1727613046425,-13110.61360553,0.00011,2]
[339429326,1727613046436,-38491.20539189,0.00011,2]
[339429327,1727613046447,-56342.7082987,0.00011,2]
[339429328,1727613046458,-506.28464956,0.00011,2]
[339429329,1727613046469,-82538.7704699,0.00011,2]
[339429330,1727613046484,-474.70594152,0.00011,2]
[339429331,1727613046496,-33666.64341342,0.00011,2]
[339429332,1727613046518,-1580.85761632,0.00011,2]
[339429333,1727613046532,-1421.4756318,0.00011,2]
[339429334,1727613046544,-2504.11722461,0.00011,2]
[339429335,1727613046555,-430.18684934,0.00011,2]
[339429336,1727613046567,-3518.04920049,0.00011,2]
[339429337,1727613046579,-3701.92517562,0.00011,2]
[339429338,1727613046592,-5143.26,0.00011,2]
[339429339,1727613046604,-10851.63376032,0.00011,2]
[339429350,1727613579185,800.65,8.243e-05,2]
[339429356,1727614232350,-150.0,9.999e-05,2]
[339429357,1727614232360,-300.0,9.999e-05,2]
[339429358,1727614232369,-51.95791481,0.0001,2]
[339429359,1727614232407,-998.04208519,0.0001,2]
[339429360,1727614232417,-77626.95791584,0.0001,2]
[339429456,1727614238133,-1363.02997939,0.0001,2]
[339429457,1727614238198,-7626.19378738,0.0001,2]
[339429458,1727614238247,-16932.32639603,0.0001,2]
[339429459,1727614238461,-202296.49192136,0.0001,2]
[339429460,1727614238471,-160.0,0.00010047,2]
[339429461,1727614238480,-250.0,0.00010083,2]
[339429462,1727614238490,-165.17,0.00010107,2]
[339429463,1727614238499,-840.0,0.00010264,2]
[339429464,1727614238509,-11512.0,0.000104,3]
[339429465,1727614238518,-800.65,0.00010507,2]
[339429466,1727614238527,-262.7,0.00010771,2]
[339429467,1727614238537,-11512.0,0.000108,5]
[339429468,1727614238547,-500.0,0.00010857,2]
[339429469,1727614238557,-900.0,0.00010857,2]
[339429470,1727614238567,-700.0,0.00010857,2]
[339429471,1727614238577,-1186.6985,0.000109,2]
[339429472,1727614238586,-313.68845188,0.000109,2]
[339429473,1727614238597,-181.70699584,0.000109,2]
[339429474,1727614238607,-500.0,0.00010912,2]
[339429475,1727614238618,-178.93,0.00010959,2]
[339429476,1727614238631,-158.57,0.00010959,2]
[339429477,1727614238642,-8632.962,0.00010972,2]
[339429478,1727614238651,-150.0,0.00010972,2]
[339429479,1727614238660,-500.0,0.00010973,2]
[339429480,1727614238670,-2166.0,0.0001098,2]
[339429481,1727614238679,-540.604,0.0001098,2]
[339429482,1727614238688,-250000.0,0.0001099,2]
[339429483,1727614238697,-500.0,0.00010996,2]
[339429484,1727614238707,-264.16795335,0.00010996,2]
[339429485,1727614238716,-500.0,0.00010996,2]
[339429486,1727614238726,-500.0,0.00010996,2]
[339429487,1727614238736,-500.0,0.00010996,2]
[339429488,1727614238747,-68103.6982127,0.00010997,2]
[339429489,1727614238757,-6288.2890712,0.00010997,2]
[339429490,1727614238767,-5928.009889,0.00010997,2]
[339429491,1727614238775,-1000.0,0.00010999,2]
[339429492,1727614238785,-1000.0,0.00010999,2]
[339429493,1727614238795,-1000.0,0.00010999,2]
[339429494,1727614238806,-255.0,0.00010999,2]
[339429495,1727614238816,-420.0,0.00010999,2]
[339429496,1727614238825,-622.43603892,0.00010999,2]
[339429497,1727614238835,-153.13641404,0.00011,2]
[339429498,1727614238845,-53051.90848744,0.00011,2]
[339429499,1727614238855,-29203.00681511,0.00011,2]
[339429526,1727614240174,-635.27306619,0.00011,2]
[339429527,1727614240653,-351.33185586,0.00011,2]
[339429528,1727614240670,-970.49511104,0.00011,2]
[339429529,1727614240681,-16876.40537994,0.00011,2]
[339429531,1727614243222,-4608.06807084,0.00011,2]
[339429532,1727614243391,-69596.8344374,0.00011,2]
[339429533,1727614243402,-414.14999976,0.00011,2]
[339429535,1727614245610,720.58,8.857e-05,2]
[339429539,1727614246169,-414.95735928,0.00010999,2]
[339429540,1727614246179,-20045.92472679,0.00011,2]
[339429541,1727614246234,-1940.73829803,0.00011,2]
[339429542,1727614253775,526.0268,9.9e-05,2]
[339429543,1727614392665,-500.0,0.00010857,2]
[339429544,1727614392690,-500.0,0.00010857,2]
[339429545,1727614392711,-800.0,0.00010857,2]
[339429546,1727614392732,-700.0,0.00010857,2]
[339429547,1727614392754,-300.0,0.00010899,2]
[339429548,1727614392775,-1000.0,0.000109,2]
[339429549,1727614392797,-16200.0,0.00010997,2]
[339429550,1727614941202,-341.52,0.00010265,2]
[339429551,1727614941222,-341.52,0.00010268,2]
[339429552,1727614941244,-341.52,0.0001027,2]
[339429553,1727614941264,-341.52,0.00010273,2]
[339429554,1727614941285,-341.52,0.00010276,2]
[339429555,1727614941310,-341.52,0.00010278,2]
[339429556,1727614941333,-341.52,0.00010281,2]
[339429557,1727614941354,-341.52,0.00010284,2]
[339429558,1727614941374,-341.52,0.00010286,2]
[339429559,1727614941395,-341.52,0.00010289,2]
[339429560,1727614941415,-341.52,0.00010292,2]
[339429561,1727614941435,-341.52,0.00010295,2]
[339429562,1727614941455,-341.52,0.00010297,2]
[339429563,1727614941474,-341.52,0.000103,2]
[339429564,1727614941496,-341.52,0.00010303,2]
[339429565,1727614941515,-341.52,0.00010305,2]
[339429566,1727614941535,-341.52,0.00010308,2]
[339429567,1727614941559,-341.52,0.00010311,2]
[339429568,1727614941580,-341.52,0.00010314,2]
[339429569,1727614941600,-341.52,0.00010316,2]
[339429570,1727614941621,-872.0,0.00010346,2]
[339429571,1727614941643,-398.75,0.00010402,2]
[339429579,1727614975129,200.0,0.00021,60]
[339429588,1727615105027,721.08,8.219e-05,2]
[339429965,1727615171406,177.8,9.917e-05,2]
[339430080,1727615236568,302.4,9.912e-05,2]
[339430081,1727615254256,-931.0,0.00029627,30]
[339430082,1727615254281,-500.0,0.00029627,31]
[339430083,1727615254305,-1000.0,0.00029627,30]